bitfinex/quotes_BTCUSD_20220105
["timestamp","ask_amount","ask_price","bid_price","bid_amount"]
[1641405625938,0.2,45980.0,45979.0,1.168022]
[1641405626138,0.2,45980.0,45979.0,0.478022]
[1641405626336,0.20295937,45980.0,45979.0,0.478022]
[1641405626872,0.20295937,45980.0,45979.0,0.409062]
[1641405627773,0.20295937,45980.0,45979.0,0.301799]
[1641405627973,0.42295937,45980.0,45979.0,0.31450148]
[1641405628174,0.42295937,45980.0,45979.0,0.54702534]
[1641405628373,0.42295937,45980.0,45979.0,0.80450148]
[1641405628573,0.42295937,45980.0,45979.0,0.32462282]
[1641405628974,0.42295937,45980.0,45979.0,0.74462282]
[1641405629176,0.42295937,45980.0,45979.0,0.79462282]
[1641405629374,0.42295937,45980.0,45979.0,0.74462282]
[1641405629579,0.42295937,45980.0,45979.0,1.39836331]
[1641405629876,0.42295937,45980.0,45979.0,1.38436331]
[1641405630075,0.42295937,45980.0,45979.0,1.40036331]
[1641405630325,0.01223096,45985.0,45980.0,0.108709]
[1641405630526,0.01223096,45985.0,45984.0,0.98864102]
[1641405630730,3.096e-05,45985.0,45984.0,1.18813696]
[1641405630926,3.096e-05,45985.0,45984.0,1.23813696]
[1641405631127,0.00033359,45985.0,45984.0,1.011462]
[1641405631334,0.00033359,45985.0,45984.0,1.011279]
[1641405631335,0.04460868,45985.0,45984.0,1.011279]
[1641405631525,0.04333359,45985.0,45984.0,1.011279]
[1641405631726,0.00033359,45985.0,45984.0,1.42874577]
[1641405631925,0.00033359,45985.0,45984.0,1.25419215]
[1641405632125,0.02033359,45985.0,45984.0,1.25930175]
[1641405632326,0.02030263,45985.0,45984.0,0.65869708]
[1641405633326,0.06030263,45985.0,45984.0,0.65869708]
[1641405633985,0.41839164,45985.0,45984.0,0.65369708]
[1641405634180,0.51839164,45985.0,45984.0,0.00129708]
[1641405634580,1.22911173,45985.0,45984.0,0.00129708]
[1641405635180,1.21111173,45985.0,45984.0,0.00129708]
[1641405635999,0.97,45984.0,45982.0,0.00081334]
[1641405636182,1.75972,45983.0,45982.0,0.00081334]
[1641405636382,1.93303586,45983.0,45982.0,0.00081334]
[1641405636583,2.08303586,45983.0,45982.0,0.00081334]
[1641405636981,2.98177658,45983.0,45975.0,0.0080442]
[1641405637181,0.00120602,45976.0,45975.0,0.0080442]
[1641405637381,0.40038765,45976.0,45975.0,0.0080442]
[1641405637580,0.63056125,45976.0,45975.0,0.0080442]
[1641405637824,1.04382641,45976.0,45975.0,0.0080442]
[1641405638026,0.05430263,45976.0,45975.0,0.0080442]
[1641405638229,0.05430263,45976.0,45966.0,0.00121333]
[1641405638230,0.82433761,45976.0,45966.0,0.054383]
[1641405638433,0.39060263,45967.0,45947.0,1.10977602]
[1641405638629,0.00030263,45948.0,45937.0,1.23390683]
[1641405638827,0.04,45947.0,45938.0,1.01310958]
[1641405639025,0.25547976,45960.0,45938.0,1.01310958]
[1641405639026,0.04,45946.0,45938.0,1.01310958]
[1641405639228,0.04,45945.0,45940.0,0.28923242]
[1641405639427,0.04,45945.0,45944.0,0.13926894]
[1641405639624,0.02530263,45945.0,45944.0,0.49814794]
[1641405639825,0.00030263,45945.0,45944.0,0.54814794]
[1641405640026,0.00330263,45945.0,45944.0,0.54814794]
[1641405641231,0.00030263,45945.0,45944.0,0.49814794]
[1641405641487,0.00030263,45945.0,45944.0,0.49314794]
[1641405641687,0.00030263,45945.0,45944.0,0.50329901]
[1641405641891,0.26137938,45955.0,45951.0,0.28874572]
[1641405642091,0.054417,45949.0,45944.0,0.19442001]
[1641405642287,0.054417,45949.0,45947.0,0.05]
[1641405642288,0.04,45948.0,45947.0,0.05]
[1641405642587,0.04,45948.0,45945.0,0.00013234]
[1641405642987,0.04,45948.0,45947.0,0.45637683]
[1641405643588,0.04,45948.0,45947.0,0.31046569]
[1641405643990,0.051,45948.0,45947.0,0.31046569]
[1641405644393,0.05100956,45948.0,45947.0,0.31046569]
[1641405644594,0.011,45948.0,45947.0,0.31046569]
[1641405644991,0.011,45948.0,45947.0,0.71934469]
[1641405645231,0.01223157,45953.0,45947.0,0.71934469]
[1641405645427,0.01223157,45953.0,45952.0,0.31959498]
[1641405645627,0.01223157,45953.0,45952.0,0.36959498]
[1641405646027,0.01223157,45953.0,45952.0,0.39159498]
[1641405646228,0.25435516,45962.0,45952.0,0.75047398]
[1641405646428,0.58953393,45963.0,45952.0,0.39159498]
[1641405646628,2.16475852,45965.0,45962.0,0.16500352]
[1641405646829,1.91040336,45965.0,45963.0,0.3372068]
[1641405647031,0.04,45965.0,45963.0,0.3372068]
[1641405648028,0.055,45965.0,45963.0,0.3372068]
[1641405648428,0.055,45965.0,45963.0,0.3872068]
[1641405648631,0.235,45965.0,45963.0,0.3872068]
[1641405648829,0.235,45965.0,45963.0,0.8072068]
[1641405649081,0.235,45965.0,45964.0,1.328879]
[1641405649379,0.235,45965.0,45964.0,0.358879]
[1641405649583,0.235,45965.0,45964.0,0.408879]
[1641405649779,0.235,45965.0,45964.0,0.41008844]
[1641405649982,0.22,45965.0,45964.0,1.06276844]
[1641405650180,0.22,45965.0,45964.0,1.06976844]
[1641405650582,0.22,45965.0,45964.0,1.15609036]
[1641405651378,0.22,45965.0,45964.0,1.14909036]
[1641405651579,0.22,45965.0,45964.0,1.06276844]
[1641405652184,0.22,45965.0,45964.0,1.07876844]
[1641405652382,0.22,45965.0,45964.0,1.07501291]
[1641405652719,0.22,45965.0,45964.0,1.16133542]
[1641405652920,0.22,45965.0,45964.0,1.11509095]
[1641405653124,0.22,45965.0,45964.0,1.11520779]
[1641405653323,0.22,45965.0,45964.0,1.09920779]
[1641405653921,0.21970564,45965.0,45964.0,1.09920779]
[1641405654125,1.36025949,45965.0,45964.0,0.67279684]
[1641405654324,1.52298864,45965.0,45964.0,0.67279684]
[1641405654523,1.52298864,45965.0,45964.0,0.68293062]
[1641405654524,0.95439828,45965.0,45964.0,0.68293062]
[1641405655420,0.95439828,45965.0,45964.0,0.66293062]
[1641405656021,0.96939828,45965.0,45964.0,0.66293062]
[1641405656675,0.61051928,45965.0,45964.0,0.66293062]
[1641405657279,0.59551928,45965.0,45964.0,0.66293062]
[1641405657477,0.54111528,45965.0,45964.0,0.66293062]
[1641405657679,0.54111528,45965.0,45964.0,0.71293062]
[1641405657876,0.25970564,45965.0,45964.0,0.71293062]
[1641405658077,0.31570564,45965.0,45964.0,0.71393062]
[1641405658979,0.31070564,45965.0,45964.0,1.33255704]
[1641405659179,0.27070564,45965.0,45964.0,1.33255704]
[1641405659378,0.21470564,45965.0,45964.0,1.65264735]
[1641405659978,0.21470564,45965.0,45964.0,1.70702635]
[1641405660223,0.23470564,45965.0,45964.0,1.71702635]
[1641405660424,0.23470564,45965.0,45964.0,1.66264735]
[1641405661425,0.21470564,45965.0,45964.0,1.65264735]
[1641405661628,0.21470564,45965.0,45964.0,1.70264735]
[1641405661826,0.21470564,45965.0,45964.0,1.70385958]
[1641405662028,0.054373,45987.0,45965.0,1.17]
[1641405662229,0.04,45992.0,45979.0,0.054368]
[1641405662436,0.00126941,45993.0,45986.0,0.17889917]
[1641405662626,0.58953393,45994.0,45987.0,0.27109147]
[1641405663026,0.58953393,45994.0,45987.0,0.32109147]
[1641405663227,0.58953393,45994.0,45989.0,0.00889206]
[1641405663428,0.358879,45993.0,45989.0,0.054362]
[1641405663626,0.58953393,45997.0,45989.0,0.00038338]
[1641405663827,0.58953393,45997.0,45990.0,9.362e-05]
[1641405663828,0.054367,45994.0,45990.0,9.362e-05]
[1641405664070,0.58953393,45997.0,45990.0,9.362e-05]
[1641405664272,0.35956471,46000.0,45982.0,0.09207636]
[1641405664273,0.62,45990.0,45982.0,0.09207636]
[1641405664473,0.29650677,45986.0,45979.0,0.73896773]
[1641405664670,0.29650677,45986.0,45979.0,0.63643254]
[1641405664870,0.29650677,45986.0,45979.0,0.52436075]
[1641405665073,0.29650677,45986.0,45980.0,0.00079786]
[1641405665074,0.054381,45983.0,45980.0,0.00079786]
[1641405665269,0.054381,45983.0,45977.0,0.8622407]
[1641405665472,0.04,45982.0,45980.0,0.108749]
[1641405667074,0.04,45982.0,45981.0,0.05]
[1641405667829,0.04,45982.0,45969.0,0.8622407]
[1641405667830,0.76314383,45982.0,45969.0,0.8622407]
[1641405668029,0.054394,45976.0,45969.0,0.8622407]
[1641405668229,0.04,45975.0,45970.0,0.32727772]
[1641405668629,0.04,45975.0,45970.0,0.32846549]
[1641405668828,0.04,45975.0,45970.0,0.00118777]
[1641405669029,0.05439,45974.0,45970.0,0.00118777]
[1641405669229,0.04,45973.0,45970.0,0.00118777]
[1641405669429,0.04,45972.0,45971.0,0.358935]
[1641405670233,0.04,45972.0,45971.0,0.408935]
[1641405670629,0.03704413,45972.0,45971.0,0.408935]
[1641405671474,0.03704413,45972.0,45971.0,0.89058386]
[1641405671675,0.01213481,45977.0,45975.0,0.1805589]
[1641405671875,0.01213481,45977.0,45976.0,0.358935]
[1641405672075,0.01213481,45977.0,45976.0,0.408935]
[1641405672275,0.054383,45980.0,45976.0,0.408935]
[1641405672477,0.04350729,45980.0,45978.0,0.048943]
[1641405672677,0.14,45985.0,45978.0,0.048943]
[1641405673276,0.04,45985.0,45978.0,0.048943]
[1641405673877,0.05438,45982.0,45981.0,0.054379]
[1641405674077,0.04938,45982.0,45981.0,0.054379]
[1641405674276,0.04938,45982.0,45981.0,0.104379]
[1641405674782,0.04938,45982.0,45981.0,0.1044727]
[1641405674979,0.054377,45984.0,45981.0,0.0500937]
[1641405675232,0.054377,45984.0,45982.0,0.048939]
[1641405675527,0.054377,45984.0,45982.0,0.098939]
[1641405675727,0.054377,45984.0,45982.0,0.048939]
[1641405675925,0.054375,45986.0,45982.0,0.17940268]
[1641405676126,0.04,45990.0,45982.0,0.28814768]
[1641405676325,2.54910402,45991.0,45982.0,0.23920868]
[1641405676525,2.54910402,45991.0,45988.0,0.13825767]
[1641405676728,1.95957009,45991.0,45988.0,0.13825767]
[1641405677125,1.95957009,45991.0,45989.0,0.048933]
[1641405677327,0.358935,45990.0,45988.0,0.05]
[1641405677527,0.358935,45990.0,45981.0,9.37e-05]
[1641405677727,1.95957009,45991.0,45981.0,9.37e-05]
[1641405678131,1.95957009,45991.0,45983.0,0.14262877]
[1641405678428,1.95957009,45991.0,45986.0,0.054373]
[1641405678630,2.01393909,45991.0,45987.0,0.048936]
[1641405679072,2.33393909,45991.0,45987.0,0.048936]
[1641405679271,0.358935,45990.0,45988.0,0.00118733]
[1641405679671,0.458935,45990.0,45988.0,0.00118733]
[1641405680573,0.458935,45990.0,45986.0,0.04012433]
[1641405680777,0.458935,45990.0,45986.0,0.09449833]
[1641405680975,0.567686,45990.0,45987.0,0.048936]
[1641405681373,0.467686,45990.0,45987.0,0.098936]
[1641405681571,0.567686,45990.0,45987.0,0.098936]
[1641405681772,0.567686,45990.0,45987.0,0.09428314]
[1641405682172,0.567686,45990.0,45987.0,0.05]
[1641405682572,0.517686,45990.0,45986.0,0.054374]
[1641405682823,0.517686,45990.0,45986.0,0.104374]
[1641405683022,0.517686,45990.0,45987.0,0.048936]
[1641405683527,0.408935,45990.0,45987.0,0.098936]
[1641405684324,0.408935,45990.0,45988.0,0.3]
[1641405684527,2.21957009,45991.0,45988.0,0.3]
[1641405684726,2.21957009,45991.0,45988.0,0.354367]
[1641405685126,2.31957009,45991.0,45989.0,8.683e-05]
[1641405685529,0.358846,45990.0,45989.0,8.683e-05]
[1641405685728,0.358846,45990.0,45989.0,0.04901683]
[1641405685926,0.458846,45990.0,45989.0,0.04901683]
[1641405686131,0.458846,45990.0,45989.0,8.683e-05]
[1641405688178,0.1,45990.0,45989.0,8.683e-05]
[1641405688378,2.27393809,45991.0,45989.0,8.683e-05]
[1641405688579,2.27393809,45991.0,45989.0,0.04901783]
[1641405689178,0.358846,45990.0,45989.0,0.04901783]
[1641405689381,2.27393809,45991.0,45989.0,0.04901783]
[1641405690825,0.358846,45990.0,45989.0,0.04901783]
[1641405691429,0.458846,45990.0,45989.0,0.04901783]
[1641405691626,0.498846,45990.0,45989.0,8.683e-05]
[1641405694083,0.398846,45990.0,45989.0,8.683e-05]
[1641405694279,0.498846,45990.0,45989.0,8.683e-05]
[1641405694480,0.398846,45990.0,45989.0,8.683e-05]
[1641405694680,0.498846,45990.0,45989.0,8.683e-05]
[1641405695081,0.398846,45990.0,45989.0,8.683e-05]
[1641405695282,0.04,45990.0,45989.0,8.683e-05]
[1641405695882,0.398846,45990.0,45989.0,8.683e-05]
[1641405696686,0.378346,45990.0,45989.0,8.683e-05]
[1641405696882,0.458846,45990.0,45989.0,8.683e-05]
[1641405697583,0.458846,45990.0,45988.0,0.33735544]
[1641405697584,0.513219,45990.0,45988.0,0.33735544]
[1641405697831,0.0435,45989.0,45988.0,0.25483844]
[1641405698029,0.130171,45989.0,45988.0,0.25483844]
[1641405698428,0.130171,45989.0,45988.0,0.24983844]
[1641405699934,0.0435,45989.0,45988.0,0.29983844]
[1641405702672,0.402346,45989.0,45988.0,0.24983844]
[1641405703073,0.1435,45989.0,45988.0,0.24983844]
[1641405703272,0.502346,45989.0,45988.0,0.24983844]
[1641405704073,0.502346,45989.0,45988.0,0.25792931]
[1641405704476,0.1435,45989.0,45988.0,0.30792931]
[1641405704873,0.0385,45989.0,45988.0,0.30792931]
[1641405705926,0.397346,45989.0,45988.0,0.30792931]
[1641405706124,0.497346,45989.0,45988.0,0.30792931]
[1641405706328,0.497346,45989.0,45988.0,0.25792931]
[1641405707536,0.64390693,45990.0,45988.0,0.4726774]
[1641405707735,0.58953393,45990.0,45988.0,0.4726774]
[1641405708130,0.80953393,45991.0,45988.0,0.4726774]
[1641405708344,0.80953393,45991.0,45988.0,0.5270394]
[1641405708532,0.78453393,45991.0,45990.0,0.28996185]
[1641405708731,0.78453393,45991.0,45990.0,0.45963773]
[1641405708987,0.195,45991.0,45990.0,0.50963773]
[1641405709790,0.195,45991.0,45990.0,0.64984478]
[1641405709987,0.195,45991.0,45990.0,0.34805079]
[1641405711087,0.195,45991.0,45990.0,0.05808894]
[1641405711291,0.195,45991.0,45990.0,0.00808894]
[1641405714933,0.597346,45991.0,45990.0,0.00808894]
[1641405715629,0.597346,45991.0,45990.0,8.894e-05]
[1641405715828,0.73750705,45991.0,45990.0,8.894e-05]
[1641405716027,0.73750705,45991.0,45988.0,8.544e-05]
[1641405716028,0.141054,45990.0,45988.0,8.544e-05]
[1641405716229,0.0385,45989.0,45988.0,8.544e-05]
[1641405716480,0.397346,45989.0,45988.0,8.544e-05]
[1641405716681,1.42062132,45988.0,45979.0,0.7395504]
[1641405716881,0.32242805,45981.0,45972.0,0.7395504]
[1641405717082,0.29593251,45980.0,45977.0,0.000782]
[1641405717280,0.358846,45979.0,45977.0,0.000782]
[1641405717485,0.0435,45978.0,45977.0,0.000782]
[1641405717880,0.63171736,45978.0,45977.0,0.000782]
[1641405718080,0.73171736,45978.0,45977.0,0.000782]
[1641405718279,0.74171736,45978.0,45977.0,0.000782]
[1641405718483,0.512346,45978.0,45977.0,0.000782]
[1641405719685,0.732346,45978.0,45977.0,0.000782]
[1641405719886,0.732346,45978.0,45967.0,0.16809085]
[1641405720089,0.054391,45973.0,45967.0,0.21809085]
[1641405720736,0.91789447,45978.0,45967.0,0.21809085]
[1641405720737,0.81789447,45978.0,45971.0,0.1789398]
[1641405720935,0.81789447,45978.0,45971.0,0.2289398]
[1641405721234,0.81789447,45978.0,45973.0,0.038065]
[1641405721235,0.87227347,45978.0,45973.0,0.038065]
[1641405721633,0.86127347,45978.0,45973.0,0.038065]
[1641405721834,0.86127347,45978.0,45974.0,0.16847202]
[1641405722034,0.86127347,45978.0,45973.0,0.038065]
[1641405722035,0.274379,45978.0,45973.0,0.038065]
[1641405722235,0.0435,45977.0,45973.0,0.038065]
[1641405722435,0.402346,45977.0,45972.0,0.00078244]
[1641405722640,0.054393,45976.0,45972.0,0.00078244]
[1641405722935,0.130171,45975.0,45972.0,0.00078244]
[1641405723133,0.0435,45974.0,45972.0,0.00078244]
[1641405723335,0.358846,45973.0,45972.0,0.00078244]
[1641405723534,0.402346,45973.0,45972.0,0.00078244]
[1641405723838,0.402346,45973.0,45961.0,0.076154]
[1641405723839,0.038077,45965.0,45961.0,0.076154]
[1641405724096,0.20992626,45964.0,45958.0,0.98519216]
[1641405724694,0.3006413,45962.0,45958.0,0.98519216]
[1641405724894,0.00127625,45959.0,45958.0,0.98519216]
[1641405725091,0.92477625,45959.0,45958.0,0.98519216]
[1641405725398,0.92277625,45959.0,45958.0,0.00123047]
[1641405725592,0.50162225,45959.0,45958.0,0.00123047]
[1641405726193,0.51062225,45959.0,45958.0,0.00123047]
[1641405726393,0.71062225,45959.0,45958.0,0.00123047]
[1641405726694,0.10885033,45956.0,45946.0,0.007751]
[1641405726895,0.054425,45953.0,45946.0,0.007751]
[1641405727093,0.402346,45952.0,45946.0,0.007751]
[1641405727294,0.84620277,45951.0,45946.0,0.007751]
[1641405727595,0.98970277,45951.0,45946.0,0.007751]
[1641405727854,0.22127496,45947.0,45946.0,0.007751]
[1641405728056,0.58717739,45947.0,45946.0,0.007751]
[1641405728453,0.68717739,45947.0,45946.0,0.007751]
[1641405728651,0.73717739,45947.0,45946.0,0.007751]
[1641405729651,0.68717739,45947.0,45946.0,0.007751]
[1641405729852,0.73717739,45947.0,45946.0,0.007751]
[1641405730053,0.93717739,45947.0,45946.0,0.007751]
[1641405730255,0.94717739,45947.0,45944.0,0.00098764]
[1641405730455,0.358846,45946.0,45944.0,0.00098764]
[1641405730757,0.0935,45945.0,45944.0,0.00217611]
[1641405730955,0.380171,45945.0,45943.0,0.00033]
[1641405731158,0.380171,45945.0,45940.0,0.00033]
[1641405731160,0.558846,45942.0,45940.0,0.00033]
[1641405731359,0.130171,45941.0,45940.0,0.00033]
[1641405732084,0.480171,45941.0,45940.0,0.00033]
[1641405732283,0.688171,45941.0,45940.0,0.00022]
[1641405732483,0.788171,45941.0,45940.0,0.00022]
[1641405732783,0.788171,45941.0,45934.0,0.01900041]
[1641405732784,0.48946929,45941.0,45934.0,0.01900041]
[1641405732984,0.558846,45940.0,45934.0,0.01900041]
[1641405733184,0.402346,45940.0,45934.0,0.01900041]
[1641405733489,0.502346,45940.0,45936.0,0.00676]
[1641405733685,0.16452423,45937.0,45936.0,0.00676]
[1641405733886,0.29451874,45937.0,45936.0,0.00646]
[1641405734084,0.130171,45937.0,45936.0,0.00646]
[1641405734284,0.137171,45937.0,45936.0,0.00616]
[1641405734687,0.358846,45936.0,45934.0,0.01900041]
[1641405734887,0.130171,45935.0,45934.0,0.01900041]
[1641405735237,0.130171,45935.0,45934.0,0.01889041]
[1641405735440,0.330171,45935.0,45929.0,1.02044]
[1641405735639,0.358846,45934.0,45929.0,1.02044]
[1641405735837,0.402346,45934.0,45929.0,1.02044]
[1641405736041,0.502346,45934.0,45929.0,1.02044]
[1641405736238,0.75902078,45934.0,45929.0,1.02044]
[1641405736638,0.510346,45934.0,45929.0,1.02044]
[1641405737038,0.505686,45934.0,45929.0,1.02044]
[1641405737240,0.405686,45934.0,45931.0,0.0053157]
[1641405737440,0.0435,45934.0,45933.0,0.18732819]
[1641405737644,0.42,45937.0,45933.0,0.52221749]
[1641405737843,0.42,45937.0,45933.0,0.23732819]
[1641405738042,0.42,45939.0,45934.0,0.1]
[1641405738240,0.021,45937.0,45935.0,0.13886663]
[1641405738645,0.021,45937.0,45936.0,0.05]
[1641405739583,0.42,45939.0,45936.0,0.05]
[1641405739986,0.054431,45938.0,45936.0,0.05]
[1641405740887,0.358659,45937.0,45936.0,0.05]
[1641405741088,0.358659,45937.0,45935.0,0.00012455]
[1641405741292,0.358659,45937.0,45935.0,0.86398926]
[1641405741488,0.274431,45938.0,45936.0,0.05]
[1641405741889,0.274431,45938.0,45937.0,0.16491186]
[1641405742288,0.284431,45938.0,45937.0,0.16491186]
[1641405743534,0.633576,45938.0,45937.0,0.16491186]
[1641405743733,0.274431,45938.0,45937.0,0.16491186]
[1641405744332,0.284431,45938.0,45937.0,0.16491186]
[1641405744735,0.23,45938.0,45937.0,0.16491186]
[1641405744934,0.46390402,45938.0,45935.0,0.91841326]
[1641405745138,0.15751052,45937.0,45935.0,0.00012455]
[1641405745432,0.15751052,45937.0,45935.0,0.00087883]
[1641405745433,0.402645,45936.0,45935.0,0.00087883]
[1641405745634,0.0435,45936.0,45935.0,0.00087883]
[1641405746234,0.0555,45936.0,45935.0,0.00087883]
[1641405746682,0.414145,45936.0,45935.0,0.00087883]
[1641405747186,0.414145,45936.0,45929.0,0.94972372]
[1641405747187,0.00124934,45930.0,45929.0,0.94972372]
[1641405747383,0.00124934,45930.0,45923.0,0.00044]
[1641405747384,0.86,45926.0,45923.0,0.00044]
[1641405747589,0.63654902,45925.0,45923.0,0.00044]
[1641405747884,0.734335,45924.0,45923.0,0.00044]
[1641405748082,0.79667,45924.0,45923.0,0.00044]
[1641405748282,0.78667,45924.0,45923.0,0.00044]
[1641405748683,1.145815,45924.0,45923.0,0.00044]
[1641405749785,1.145815,45924.0,45923.0,0.00056443]
[1641405749988,1.045815,45924.0,45923.0,0.00056443]
[1641405750238,1.28968006,45924.0,45923.0,0.00056443]
[1641405750437,0.081165,45923.0,45920.0,0.00044]
[1641405750637,0.402645,45922.0,45920.0,0.00044]
[1641405750836,0.402645,45922.0,45906.0,0.44835]
[1641405751038,0.054468,45916.0,45906.0,0.72716234]
[1641405751239,0.0435,45915.0,45906.0,0.44835]
[1641405751438,0.0435,45914.0,45906.0,0.44835]
[1641405751646,0.097976,45914.0,45906.0,0.44835]
[1641405751841,0.36452151,45913.0,45906.0,0.44835]
[1641405752036,0.0435,45912.0,45906.0,0.44835]
[1641405752239,0.5675,45910.0,45908.0,0.00033]
[1641405752443,0.5675,45910.0,45906.0,0.44835]
[1641405752444,0.2,45908.0,45906.0,0.44835]
[1641405752640,0.413113,45907.0,45902.0,0.01610671]
[1641405752837,0.108978,45905.0,45902.0,0.01610671]
[1641405753037,0.124665,45904.0,45902.0,0.01610671]
[1641405753240,0.23390402,45903.0,45901.0,0.01078167]
[1641405753442,0.23390402,45903.0,45895.0,0.02522]
[1641405753443,1.276158,45899.0,45895.0,0.02522]
[1641405753638,1.276158,45899.0,45893.0,0.00044]
[1641405753639,0.066158,45895.0,45893.0,0.00044]
[1641405753989,0.066158,45895.0,45886.0,0.98812177]
[1641405753990,1.503385,45891.0,45886.0,0.98812177]
[1641405754187,2.1038538,45890.0,45879.0,1.1246077]
[1641405754389,2.1038538,45890.0,45879.0,1.1146077]
[1641405754390,0.14174741,45883.0,45879.0,1.1146077]
[1641405754585,0.86453341,45882.0,45879.0,0.9785077]
[1641405754785,0.0435,45881.0,45880.0,0.41671166]
[1641405754987,0.71218606,45882.0,45880.0,0.41671166]
[1641405755185,0.21419626,45881.0,45880.0,0.41671166]
[1641405755386,1.10393052,45881.0,45880.0,0.41671166]
[1641405755685,0.402885,45881.0,45877.0,0.00033]
[1641405755886,0.0435,45881.0,45880.0,1.52]
[1641405756085,0.0435,45881.0,45880.0,1.57]
[1641405756286,0.0605,45881.0,45880.0,1.57127174]
[1641405756486,0.00120842,45887.0,45882.0,1.43]
[1641405756690,0.70441397,45890.0,45888.0,0.032685]
[1641405756889,0.087,45910.0,45890.0,1.43]
[1641405757087,0.087,45910.0,45889.0,1.00384398]
[1641405757088,0.80686366,45904.0,45899.0,0.15967481]
[1641405757387,0.1695632,45900.0,45891.0,0.00122633]
[1641405757586,0.0435,45899.0,45891.0,0.00122633]
[1641405757835,0.0435,45899.0,45889.0,0.12446357]
[1641405758034,0.0435,45899.0,45887.0,0.00123334]
[1641405758035,0.04459201,45899.0,45887.0,0.00123334]
[1641405758236,0.054489,45894.0,45887.0,0.00123334]
[1641405758436,0.0435,45893.0,45887.0,0.00123334]
[1641405758636,0.0435,45893.0,45885.0,0.3800369]
[1641405758837,0.0435,45893.0,45892.0,0.13741792]
[1641405759040,0.0435,45893.0,45882.0,0.00125842]
[1641405759237,0.0435,45893.0,45889.0,0.05]
[1641405759440,0.359385,45892.0,45879.0,0.00120639]
[1641405759635,0.108988,45895.0,45879.0,0.00120639]
[1641405759636,0.0435,45891.0,45879.0,0.00120639]
[1641405759837,0.0435,45891.0,45876.0,0.06033]
[1641405759838,0.28519428,45890.0,45876.0,0.01033]
[1641405760039,0.559385,45889.0,45876.0,0.01033]
[1641405760236,0.0435,45888.0,45876.0,0.01033]
[1641405760438,0.05451,45884.0,45876.0,0.01033]
[1641405760638,0.05451,45884.0,45879.0,0.00014679]
[1641405760639,0.402885,45883.0,45879.0,0.00014679]
[1641405760838,0.28354005,45882.0,45879.0,0.00014679]
[1641405761036,0.105748,45881.0,45872.0,0.00044]
[1641405761241,0.105748,45881.0,45859.0,0.02439455]
[1641405761242,0.3675,45877.0,45859.0,0.02439455]
[1641405761490,0.03493816,45868.0,45859.0,0.02439455]
[1641405761685,0.03493816,45868.0,45864.0,0.16749722]
[1641405761686,0.04127,45867.0,45864.0,0.16749722]
[1641405761886,0.04127,45867.0,45858.0,0.20489662]
[1641405761887,0.03627,45867.0,45858.0,0.20489662]
[1641405762092,2.18188725,45865.0,45858.0,0.20489662]
[1641405762285,0.0435,45864.0,45858.0,0.03544727]
[1641405762486,0.054525,45862.0,45858.0,0.20507512]
[1641405762887,0.359385,45861.0,45858.0,0.03544727]
[1641405763083,0.054525,45862.0,45858.0,0.03544727]
[1641405763285,0.062249,45861.0,45858.0,0.03544727]
[1641405763486,0.06307975,45861.0,45858.0,0.03544727]
[1641405763886,0.919384,45859.0,45858.0,0.03544727]
[1641405764186,0.402884,45859.0,45858.0,0.03544727]
[1641405764384,0.410884,45859.0,45858.0,0.03544727]
[1641405764787,1.250884,45859.0,45858.0,0.03544727]
[1641405764986,0.510884,45859.0,45858.0,0.03544727]
[1641405765435,0.410884,45859.0,45858.0,0.03544727]
[1641405765631,0.402884,45859.0,45858.0,0.03544727]
[1641405765835,0.81056079,45860.0,45858.0,1.70714155]
[1641405765836,0.75602879,45860.0,45858.0,1.70714155]
[1641405766036,0.00109201,45861.0,45859.0,1.28169428]
[1641405766037,0.79973059,45861.0,45859.0,1.28169428]
[1641405766233,0.75633059,45861.0,45860.0,0.79560207]
[1641405766433,0.75633059,45861.0,45860.0,1.05837927]
[1641405766632,1.03607023,45875.0,45860.0,1.05837927]
[1641405766833,0.0435,45874.0,45868.0,0.34772886]
[1641405767032,0.054514,45873.0,45868.0,0.21656103]
[1641405767231,0.054514,45873.0,45869.0,0.359584]
[1641405767232,1.56445457,45872.0,45869.0,0.359584]
[1641405767436,1.56445457,45872.0,45868.0,0.21656103]
[1641405767632,0.05493,45871.0,45868.0,0.21656103]
[1641405768035,0.05493,45871.0,45868.0,0.50820527]
[1641405768233,0.05493,45871.0,45869.0,0.16530336]
[1641405768435,0.06193,45871.0,45869.0,0.16530336]
[1641405787054,0.06193,45871.0,45870.0,0.64899781]
[1641405787465,0.10317349,45871.0,45870.0,0.64899781]
[1641405787668,0.08917349,45871.0,45870.0,0.64899781]
[1641405787954,0.04907349,45871.0,45870.0,0.64899781]
[1641405788355,0.22999219,45870.0,45869.0,0.16530336]
[1641406629866,0.420865,45693.0,45692.0,0.00011]
[1641406630266,0.420865,45693.0,45691.0,0.00022]
[1641406630469,0.054724,45690.0,45675.0,0.10044]
[1641406630668,0.054723,45688.0,45678.0,0.36662244]
[1641406631269,0.065723,45688.0,45678.0,0.36662244]
[1641406631466,0.054723,45687.0,45684.0,6.706e-05]
[1641406632573,0.104723,45687.0,45684.0,6.706e-05]
[1641406633370,0.110723,45687.0,45684.0,6.706e-05]
[1641406635018,0.099723,45687.0,45684.0,6.706e-05]
[1641406635223,0.110723,45687.0,45684.0,6.706e-05]
[1641406636021,0.110723,45687.0,45684.0,0.00126223]
[1641406636621,0.099723,45687.0,45684.0,0.00126223]
[1641406637361,0.110723,45687.0,45684.0,0.00126223]
[1641406638661,0.099723,45687.0,45684.0,0.00126223]
[1641406638863,0.209179,45687.0,45684.0,0.00126223]
[1641406639062,0.263906,45687.0,45684.0,0.00126223]
[1641406639262,0.274906,45687.0,45684.0,0.00126223]
[1641406639464,0.110723,45687.0,45684.0,0.00126223]
[1641406640462,0.099723,45687.0,45684.0,0.00126223]
[1641406641408,0.110723,45687.0,45684.0,0.00126223]
[1641406641617,0.065723,45687.0,45684.0,0.00126223]
[1641406641812,0.011,45687.0,45684.0,0.00126223]
[1641406642010,0.011,45687.0,45685.0,0.0402]
[1641406642409,0.43212483,45701.0,45686.0,1.81473834]
[1641406642613,0.43212483,45701.0,45700.0,1.090157]
[1641406642815,0.43212483,45701.0,45700.0,1.7714549]
[1641406643011,0.43212483,45701.0,45700.0,1.9116549]
[1641406643311,0.43212483,45701.0,45700.0,1.9616549]
[1641406643312,0.02212483,45701.0,45700.0,1.9616549]